[Event "CZE-ch Open 2019"]
[Site "Ostrava"]
[Date "2019.04.30"]
[Round "4.28"]
[White "Vorisek, Jakub"]
[Black "Bures, Martin"]
[Result "0-1"]
[ECO "B06"]
[WhiteElo "1991"]
[BlackElo "2150"]
[Annotator "NA"]
[PlyCount "136"]
[EventDate "2019.04.27"]
[EventType "swiss"]
[EventCountry "CZE"]
[SourceTitle "playchess.com"]
[Source "ChessBase"]
[SourceQuality "1"]
[TimeControl "40/5400+30:1800+30"]

1. e4 g6 2. d4 Bg7 3. Nf3 c5 4. Nc3 cxd4 5. Nxd4 Nc6 6. Nb3 Nf6 7. Be2 O-O 8. O-O d6 9. Bg5 Be6 10. Kh1 Rc8 11. f4 $11 a6 12. Bf3 Nd7 13. Rb1 Nb6 14. Nd5 Nc4 15. c3 f6 16. Bh4 Bf7 17. Qe2 b5 18. Rbd1 e6 19. Ne3 g5 20. Bg3 gxf4 21. Bxf4 e5 22. Bg3 Ne7 23. Bg4 Rc6 24. Nf5 Nxf5 25. Bxf5 Qe7 26. Na1 Rd8 27. Nc2 d5 28. exd5 Rxd5 29. Rxd5 Bxd5 30. Qh5 Bf7 31. Bxh7+ Kf8 32. Qf3 Rd6 33. Qa8+ Qd8 34. Qxd8+ Rxd8 35. b3 Nb6 36. Nb4 a5 37. Nc6 Rd2 38. h3 Bd5 39. Rf2 Rd1+ 40. Kh2 Bxc6 41. Bxe5 Nd7 42. Bd4 Kf7 43. Bc2 Re1 44. c4 Bf8 45. Kg3 Bd6+ 46. Kh4 b4 47. Bf5 Bc5 48. Bxc5 Nxc5 49. g4 Re5 50. Rd2 Be4 51. Bc8 Bd3 52. Rf2 Ne4 53. Rf5 Nd6 54. Rxe5 fxe5 55. Bd7 Nb7 56. Kg5 Bb1 57. Kh6 Nc5 58. Bc6 e4 59. Bd5+ Kf8 60. g5 e3 61. Bf3 Ne6 62. g6 Bd3 63. c5 e2 64. Bxe2 Bxe2 65. c6 Kg8 66. h4 Bf3 67. c7 Nxc7 68. Kg5 Nd5 0-1

[Event "CZE-ch Open 2019"]
[Site "Ostrava"]
[Date "2019.04.30"]
[Round "4.29"]
[White "Vybiral, Zdenek"]
[Black "Havelka, Ondrej"]
[Result "1-0"]
[ECO "C18"]
[WhiteElo "2274"]
[BlackElo "2156"]
[Annotator "NA"]
[PlyCount "39"]
[EventDate "2019.04.27"]
[EventType "swiss"]
[EventCountry "CZE"]
[SourceTitle "playchess.com"]
[Source "ChessBase"]
[SourceQuality "1"]
[TimeControl "40/5400+30:1800+30"]

1. e4 {[%emt 0:00:00]} e6 {[%emt 0:00:00]} 2. d4 {[%emt 0:00:00]} d5 {[%emt 0:00:00]} 3. Nc3 {[%emt 0:00:00]} Bb4 {[%emt 0:03:41]} 4. e5 {[%emt 0:00:06]} c5 {[%emt 0:00:05]} 5. a3 {[%emt 0:00:27]} Bxc3+ {[%emt 0:00:05]} 6. bxc3 {[%emt 0:00:04]} Ne7 {[%emt 0:00:04]} 7. h4 {[%emt 0:00:31]} b6 {[%emt 0:02:03]} 8. Qg4 {[%emt 0:07:49]} cxd4 {[%emt 0:03:50]} 9. Qxg7 {[%emt 0:03:51]} Rg8 {[%emt 0:03:20]} 10. Qxh7 {[%emt 0:00:05]} Qc7 {[%emt 0:00:57]} 11. Ne2 {[%emt 0:00:55]} Ba6 {[%emt 0:10:05]} 12. Rh3 {[%emt 0:18:04]} dxc3 {[%emt 0:24:42]} 13. Rf3 {[%emt 0:09:49]} Nbc6 {[%emt 0:02:27]} 14. Qxf7+ {[%emt 0:00:43]} Kd7 {[%emt 0:00:05]} 15. Rf6 {[%emt 0:13:43]} Nd8 {[%emt 0:05:49]} 16. Qh5 {[%emt 0:00:06]} Nf5 {[%emt 0:13:22]} 17. Rxf5 {[%emt 0:03:13]} exf5 {[%emt 0:01:00]} 18. Qh7+ {[%emt 0:00:13]} Nf7 {[%emt 0:01:13]} 19. Qxf7+ {[%emt 0:00:12]} Kc6 {[%emt 0:00:04]} 20. Nd4+ {[%emt 0:00:14]} 1-0

[Event "CZE-ch Open 2019"]
[Site "Ostrava"]
[Date "2019.04.30"]
[Round "4.30"]
[White "Taus, Martin"]
[Black "Kanakova, Natalie"]
[Result "0-1"]
[ECO "B22"]
[WhiteElo "2104"]
[BlackElo "2202"]
[Annotator "NA"]
[PlyCount "58"]
[EventDate "2019.04.27"]
[EventType "swiss"]
[EventCountry "CZE"]
[SourceTitle "playchess.com"]
[Source "ChessBase"]
[SourceQuality "1"]
[TimeControl "40/5400+30:1800+30"]

1. e4 c5 2. c3 Nf6 3. e5 Nd5 4. d4 cxd4 5. cxd4 Nc6 6. Nf3 d6 7. exd6 Qxd6 8. Nc3 Bg4 9. Be2 e6 10. O-O Be7 11. Be3 O-O 12. Qb3 Rfd8 13. Rad1 Qc7 14. Rfe1 Rac8 15. h3 Bh5 16. Rc1 Nf4 17. Bxf4 Qxf4 18. g3 Qd6 19. g4 Bg6 20. Qxb7 Rb8 21. Qa6 Nxd4 22. Qxa7 Bf6 23. Qa3 Qf4 24. Kg2 Nxf3 25. Bxf3 Rd3 26. Re3 Be5 27. Qa6 Rxe3 28. Ne2 Qxf3+ 29. Kg1 Bh2+ 0-1

[Event "CZE-ch Open 2019"]
[Site "Ostrava"]
[Date "2019.04.30"]
[Round "4.31"]
[White "Kolar, Stanislav"]
[Black "Bulockin, Martin"]
[Result "1/2-1/2"]
[ECO "A04"]
[WhiteElo "2091"]
[BlackElo "2199"]
[Annotator "NA"]
[PlyCount "87"]
[EventDate "2019.04.27"]
[EventType "swiss"]
[EventCountry "CZE"]
[SourceTitle "playchess.com"]
[Source "ChessBase"]
[SourceQuality "1"]
[TimeControl "40/5400+30:1800+30"]

1. Nf3 {[%emt 0:00:00]} c5 {[%emt 0:00:00]} 2. c4 {[%emt 0:00:01]} g6 {[%emt 0:00:22]} 3. Nc3 {[%emt 0:00:57]} Bg7 {[%emt 0:00:12]} 4. e3 {[%emt 0:00:15]} Nf6 {[%emt 0:03:32]} 5. d4 {[%emt 0:00:18]} cxd4 {[%emt 0:00:42]} 6. exd4 {[%emt 0:00:16]} O-O {[%emt 0:01:12]} 7. Be2 {[%emt 0:02:30]} d5 {[%emt 0:01:00]} 8. cxd5 {[%emt 0:00:36]} Nxd5 {[%emt 0:00:08]} 9. Qb3 {[%emt 0:00:08]} Nxc3 {[%emt 0:07:02]} 10. bxc3 {[%emt 0:00:07]} Nc6 {[%emt 0:00:27]} 11. O-O {[%emt 0:02:02]} b6 {[%emt 0:03:22]} 12. Bf4 {[%emt 0:01:34]} Bb7 {[%emt 0:02:08]} 13. Rfd1 {[%emt 0:03:36]} e6 {[%emt 0:04:14]} 14. Rac1 {[%emt 0:01:35]} Rc8 {[%emt 0:06:21]} 15. Qa3 {[%emt 0:09:24]} Qd5 {[%emt 0:09:46]} 16. c4 {[%emt 0:04:00]} Qe4 {[%emt 0:03:31]} 17. Qe3 {[%emt 0:01:26]} Qxe3 {[%emt 0:01:29]} 18. fxe3 {[%emt 0:01:26]} Ne7 {[%emt 0:11:10]} 19. Bd6 {[%emt 0:01:02]} Rfe8 {[%emt 0:00:39]} 20. g4 {[%emt 0:02:34]} Bf8 {[%emt 0:09:44]} 21. Kf2 {[%emt 0:09:19]} Red8 {[%emt 0:03:06]} 22. Be5 {[%emt 0:01:26]} Bg7 {[%emt 0:02:20]} 23. Bg3 {[%emt 0:01:58]} h6 {[%emt 0:02:50]} 24. Ne5 {[%emt 0:02:57]} f6 {[%emt 0:02:33]} 25. Nf3 {[%emt 0:02:36]} Kf7 {[%emt 0:01:44]} 26. Bd3 {[%emt 0:02:18]} Nc6 {[%emt 0:04:55]} 27. h3 {[%emt 0:05:36]} g5 {[%emt 0:02:40]} 28. d5 {[%emt 0:01:31]} Nb4 {[%emt 0:03:49]} 29. dxe6+ {[%emt 0:00:36]} Ke7 {[%emt 0:00:08]} 30. Bf5 {[%emt 0:02:37]} Bxf3 {[%emt 0:02:29]} 31. Kxf3 {[%emt 0:00:48]} Bf8 {[%emt 0:01:07]} 32. a3 {[%emt 0:02:22]} Na6 {[%emt 0:00:47]} 33. Be1 {[%emt 0:03:06]} Rxd1 {[%emt 0:01:33]} 34. Rxd1 {[%emt 0:00:30]} Rd8 {[%emt 0:00:05]} 35. Rd4 {[%emt 0:01:03]} Rd6 {[%emt 0:02:10]} 36. Bc3 {[%emt 0:00:46]} Bg7 {[%emt 0:02:02]} 37. a4 {[%emt 0:01:52]} Nc5 {[%emt 0:00:52]} 38. Bb4 {[%emt 0:00:54]} a5 {[%emt 0:00:39]} 39. Ba3 {[%emt 0:00:24]} Bf8 {[%emt 0:00:26]} 40. Be4 {[%emt 0:07:44]} Kxe6 {[%emt 0:01:09]} 41. Bd5+ {[%emt 0:31:17]} Kd7 {[%emt 0:30:53]} 42. Rd1 {[%emt 0:01:41]} Kc7 {[%emt 0:00:46]} 43. Rb1 {[%emt 0:00:40]} Rd8 44. Bxc5 {[%emt 0:05:27]} 1/2-1/2

[Event "CZE-ch Open 2019"]
[Site "Ostrava"]
[Date "2019.04.30"]
[Round "4.32"]
[White "Bartos, Jan"]
[Black "Holy, Filip"]
[Result "1/2-1/2"]
[ECO "D15"]
[WhiteElo "2178"]
[BlackElo "2096"]
[Annotator "NA"]
[PlyCount "70"]
[EventDate "2019.04.27"]
[EventType "swiss"]
[EventCountry "CZE"]
[SourceTitle "playchess.com"]
[Source "ChessBase"]
[SourceQuality "1"]
[TimeControl "40/5400+30:1800+30"]

1. d4 {[%emt 0:05:35]} d5 {[%emt 0:00:00]} 2. c4 {[%emt 0:00:28]} c6 {[%emt 0:00:00]} 3. Nf3 {[%emt 0:00:06]} Nf6 {[%emt 0:00:00]} 4. Nc3 {[%emt 0:00:05]} a6 {[%emt 0:00:00]} 5. e3 {[%emt 0:00:07]} b5 {[%emt 0:00:00]} 6. b3 {[%emt 0:00:05]} Bg4 {[%emt 0:00:00]} 7. Be2 {[%emt 0:00:10]} Nbd7 {[%emt 0:00:07]} 8. h3 {[%emt 0:00:21]} Bh5 {[%emt 0:01:10]} 9. g4 {[%emt 0:00:28]} Bg6 {[%emt 0:00:05]} 10. Ne5 {[%emt 0:00:10]} Nxe5 {[%emt 0:03:21]} 11. dxe5 {[%emt 0:00:06]} Ne4 {[%emt 0:00:07]} 12. Nxe4 {[%emt 0:01:15]} Bxe4 {[%emt 0:00:07]} 13. f3 {[%emt 0:00:33]} Bg6 {[%emt 0:00:39]} 14. e6 Qd6 15. exf7+ {[%emt 0:10:33]} Bxf7 {[%emt 0:09:47]} 16. cxd5 {[%emt 0:05:29]} cxd5 {[%emt 0:10:02]} 17. Bb2 {[%emt 0:08:31]} Qg3+ {[%emt 0:12:56]} 18. Kf1 {[%emt 0:00:17]} e5 {[%emt 0:00:27]} 19. Bc3 {[%emt 0:21:18]} e4 {[%emt 0:01:34]} 20. Be1 {[%emt 0:00:12]} Qb8 {[%emt 0:03:44]} 21. Kg2 {[%emt 0:05:32]} Bc5 {[%emt 0:01:54]} 22. Bc3 {[%emt 0:09:46]} O-O {[%emt 0:00:30]} 23. Bd4 {[%emt 0:04:47]} exf3+ {[%emt 0:00:19]} 24. Bxf3 {[%emt 0:00:14]} Be7 {[%emt 0:00:11]} 25. Qd2 {[%emt 0:01:18]} Bh4 {[%emt 0:00:50]} 26. Rhf1 {[%emt 0:08:05]} Qg3+ {[%emt 0:03:27]} 27. Kh1 {[%emt 0:00:05]} Qxh3+ {[%emt 0:00:21]} 28. Qh2 {[%emt 0:00:06]} Qxh2+ {[%emt 0:00:22]} 29. Kxh2 {[%emt 0:00:05]} Be6 {[%emt 0:00:53]} 30. Rac1 {[%emt 0:02:40]} Rac8 {[%emt 0:00:46]} 31. Kg2 {[%emt 0:01:07]} Be7 {[%emt 0:02:05]} 32. Rfd1 {[%emt 0:01:44]} Ba3 {[%emt 0:01:17]} 33. Rc3 {[%emt 0:02:59]} Rxc3 {[%emt 0:01:05]} 34. Bxc3 {[%emt 0:00:04]} Rc8 {[%emt 0:01:32]} 35. Rd3 {[%emt 0:00:56]} Kf7 {[%emt 0:14:59]} 1/2-1/2

[Event "CZE-ch Open 2019"]
[Site "Ostrava"]
[Date "2019.04.30"]
[Round "4.33"]
[White "Horak, Jan"]
[Black "Vanek, Tomas"]
[Result "0-1"]
[ECO "B23"]
[WhiteElo "2158"]
[BlackElo "2095"]
[Annotator "NA"]
[PlyCount "88"]
[EventDate "2019.04.27"]
[EventType "swiss"]
[EventCountry "CZE"]
[SourceTitle "playchess.com"]
[Source "ChessBase"]
[SourceQuality "1"]
[TimeControl "40/5400+30:1800+30"]

1. e4 {[%emt 0:00:00]} c5 {[%emt 0:04:20]} 2. Nc3 {[%emt 0:00:00]} Nc6 {[%emt 0:00:08]} 3. f4 {[%emt 0:00:07]} g6 {[%emt 0:00:14]} 4. Nf3 {[%emt 0:00:08]} Bg7 {[%emt 0:00:05]} 5. g3 {[%emt 0:00:10]} e6 {[%emt 0:00:45]} 6. Bg2 {[%emt 0:00:07]} Nge7 {[%emt 0:00:21]} 7. O-O {[%emt 0:00:21]} O-O {[%emt 0:00:29]} 8. d3 {[%emt 0:00:08]} d5 {[%emt 0:07:15]} 9. e5 {[%emt 0:02:05]} a6 {[%emt 0:01:59]} 10. g4 {[%emt 0:03:30]} b5 {[%emt 0:02:49]} 11. h3 {[%emt 0:02:47]} f6 {[%emt 0:02:33]} 12. exf6 {[%emt 0:00:35]} Bxf6 {[%emt 0:00:20]} 13. Re1 {[%emt 0:01:54]} b4 {[%emt 0:07:35]} 14. Ne2 {[%emt 0:01:57]} Qb6 {[%emt 0:00:54]} 15. Kh1 {[%emt 0:01:53]} Bd7 {[%emt 0:11:30]} 16. Neg1 {[%emt 0:20:08]} a5 {[%emt 0:08:34]} 17. Ne5 {[%emt 0:07:39]} Nxe5 {[%emt 0:02:14]} 18. fxe5 {[%emt 0:00:08]} Bg7 {[%emt 0:00:42]} 19. Nf3 {[%emt 0:00:15]} Nc6 {[%emt 0:01:05]} 20. Bg5 {[%emt 0:02:04]} a4 {[%emt 0:16:13]} 21. Qd2 {[%emt 0:03:05]} a3 {[%emt 0:01:10]} 22. b3 {[%emt 0:00:38]} Rxf3 {[%emt 0:01:26]} 23. Bxf3 {[%emt 0:04:23]} Nxe5 {[%emt 0:00:18]} 24. Bg2 {[%emt 0:06:51]} Nf7 {[%emt 0:00:16]} 25. Be3 {[%emt 0:09:32]} Bxa1 {[%emt 0:06:50]} 26. Rxa1 {[%emt 0:00:31]} Rc8 {[%emt 0:02:49]} 27. Rf1 {[%emt 0:01:37]} Qd6 {[%emt 0:00:42]} 28. Qf2 {[%emt 0:01:14]} Qe7 {[%emt 0:01:21]} 29. d4 {[%emt 0:04:52]} c4 {[%emt 0:01:32]} 30. h4 {[%emt 0:01:15]} cxb3 {[%emt 0:00:21]} 31. cxb3 {[%emt 0:00:02]} Bb5 {[%emt 0:01:10]} 32. Re1 {[%emt 0:01:47]} Rc2 {[%emt 0:03:29]} 33. Qg3 {[%emt 0:01:34]} Bd7 {[%emt 0:07:06]} 34. h5 {[%emt 0:12:43]} Rxa2 {[%emt 0:03:18]} 35. Rf1 {[%emt 0:08:13]} Rc2 {[%emt 0:00:34]} 36. hxg6 {[%emt 0:00:36]} hxg6 {[%emt 0:00:14]} 37. Bg1 {[%emt 0:02:54]} Rc3 {[%emt 0:02:11]} 38. Qf2 {[%emt 0:00:01]} Bb5 {[%emt 0:00:29]} 39. Re1 {[%emt 0:00:20]} Nd6 {[%emt 0:02:27]} 40. Bxd5 {[%emt 0:00:43]} Qh7+ {[%emt 0:00:13]} 41. Bh2 {[%emt 0:30:58]} exd5 {[%emt 0:30:52]} 42. Qf6 {[%emt 0:00:00]} Ne8 {[%emt 0:00:00]} 43. Qd8 {[%emt 0:00:00]} Qf7 {[%emt 0:00:00]} 44. Qb8 {[%emt 0:00:00]} Be2 {[%emt 0:00:00]} 0-1